bitfinex/quotes_SOLUSD_20250305
["timestamp","ask_amount","ask_price","bid_price","bid_amount"]
[1741189365370,83.04216157,141.36,141.3,0.033]
[1741189365699,18.64964886,141.34,141.28,1.5688]
[1741189365908,18.79181043,141.32,141.28,0.033]
[1741189366195,0.28432314,141.3,141.28,0.033]
[1741189367192,82.9,141.31,141.28,0.033]
[1741189367895,0.28432314,141.3,141.28,0.033]
[1741189368312,0.14216157,141.29,141.28,0.033]
[1741189368509,83.04216157,141.29,141.28,0.033]
[1741189369089,101.69181043,141.29,141.28,0.033]
[1741189369294,101.97613357,141.29,141.28,0.033]
[1741189369492,109.05373357,141.29,141.28,0.033]
[1741189369923,26.15373357,141.29,141.28,0.033]
[1741189370299,0.28432314,141.29,141.28,0.033]
[1741189370814,7.0752,141.34,141.28,0.033]
[1741189371487,82.9,141.35,141.29,1.5364]
[1741189371691,0.28432314,141.34,141.29,1.5364]
[1741189372416,82.9,141.35,141.29,313.5364]
[1741189372922,0.28432314,141.34,141.29,313.5364]
[1741189373120,89.9747,141.35,141.29,313.5364]
[1741189373121,82.9,141.35,141.29,313.5364]
[1741189373291,0.28432314,141.34,141.29,313.5364]
[1741189373614,0.28432314,141.34,141.29,320.6139]
[1741189373986,7.35952314,141.34,141.29,313.5364]
[1741189374189,0.28432314,141.34,141.29,313.5364]
[1741189374410,82.9,141.35,141.29,320.614]
[1741189374730,82.9,141.35,141.29,8.614]
[1741189375501,82.9,141.35,141.29,56.51857907]
[1741189375702,82.9,141.4,141.3,30.21047907]
[1741189375909,82.9,141.4,141.31,30.21047907]
[1741189376301,82.9,141.4,141.32,30.21047907]
[1741189376628,18.64964886,141.42,141.33,31.82627907]
[1741189376629,108.62094886,141.42,141.33,31.82627907]
[1741189376792,0.42648471,141.41,141.33,83.9158]
[1741189376990,101.54964886,141.4,141.33,1.6158]
[1741189377206,0.42648471,141.38,141.33,1.6158]
[1741189377604,7.0736,141.37,141.33,313.6158]
[1741189377814,0.28432314,141.36,141.33,313.6158]
[1741189378016,0.28432314,141.36,141.33,1.6158]
[1741189378240,83.32648471,141.36,141.33,1.6158]
[1741189378426,0.14216157,141.35,141.33,1.6158]
[1741189379107,83.18432314,141.36,141.33,1.6158]
[1741189379700,90.25882314,141.36,141.33,1.6158]
[1741189380127,83.18432314,141.36,141.33,1.6158]
[1741189380303,90.25852314,141.36,141.33,1.6158]
[1741189380919,83.18432314,141.36,141.33,1.6158]
[1741189381119,82.9,141.4,141.33,8.6912]
[1741189381328,1.85690487,141.39,141.33,1.6158]
[1741189381511,19.07613357,141.38,141.33,1.6158]
[1741189381707,0.28432314,141.36,141.33,1.6158]
[1741189382828,7.0736,141.37,141.33,1.6158]
[1741189384623,7.0736,141.37,141.33,313.6158]
[1741189385029,7.21426157,141.4,141.33,313.6158]
[1741189385233,0.28432314,141.39,141.33,320.6913]
[1741189385533,7.21426157,141.4,141.33,320.6913]
[1741189385534,7.0721,141.4,141.34,6.1921]
[1741189385753,0.28432314,141.4,141.34,6.1921]
[1741189385918,89.9718,141.41,141.35,7.0746]
[1741189386430,7.0718,141.41,141.35,7.0746]
[1741189386627,82.9,141.46,141.38,30.21047907]
[1741189386829,82.9,141.48,141.4,36.27147907]
[1741189387132,7.0676,141.49,141.41,1.6452]
[1741189387320,7.0676,141.49,141.41,83.9452]
[1741189387520,82.9,141.5,141.42,30.21047907]
[1741189387722,89.9672,141.5,141.43,37.28107907]
[1741189388033,89.9672,141.5,141.41,83.9452]
[1741189388034,7.0672,141.5,141.41,83.9452]
[1741189388213,101.54964886,141.49,141.41,83.9452]
[1741189388534,19.07613357,141.48,141.43,312.0]
[1741189388708,18.933972,141.48,141.43,312.0]
[1741189388913,7.0672,141.5,141.43,394.3]
[1741189389202,24.735,141.5,141.43,82.3]
[1741189389628,18.933972,141.49,141.43,82.3]
[1741189390009,0.14216157,141.46,141.41,1.6452]
[1741189390246,0.14216157,141.45,141.41,1.6452]
[1741189390409,18.79181043,141.45,141.41,1.6452]
[1741189390741,0.28432314,141.44,141.41,1.6452]
[1741189391942,7.0706,141.43,141.41,1.6452]
[1741189394345,19.07613357,141.42,141.41,1.6452]
[1741189394520,19.07613357,141.42,141.37,1.5076]
[1741189394848,101.97613357,141.42,141.37,1.5076]
[1741189395049,0.28432314,141.39,141.37,1.5076]
[1741189395416,0.14216157,141.38,141.37,1.5076]
[1741189395955,18.79181043,141.38,141.37,1.5076]
[1741189396138,25.86491043,141.38,141.37,1.5076]
[1741189396324,0.14216157,141.36,141.32,6.2155]
[1741189396524,0.28432314,141.35,141.28,88.5485]
[1741189396754,2.14205902,141.35,141.28,88.5485]
[1741189397047,0.28432314,141.35,141.28,88.5485]
[1741189397542,0.28432314,141.35,141.28,400.5485]
[1741189398046,7.0751,141.34,141.28,400.5485]
[1741189398949,7.0751,141.34,141.28,407.6265]
[1741189399248,7.35902314,141.35,141.29,1.627]
[1741189399621,82.9,141.36,141.29,31.83747907]
[1741189399831,0.14216157,141.4,141.31,30.21047907]
[1741189400044,7.0723,141.4,141.32,30.21047907]
[1741189400549,7.0723,141.4,141.32,7.0757]
[1741189400945,0.42648471,141.39,141.31,82.3]
[1741189401121,20.93309688,141.39,141.31,82.3]
[1741189401321,20.93309688,141.39,141.31,89.3766]
[1741189401618,1.85696331,141.39,141.31,89.3766]
[1741189401842,7.0723,141.4,141.31,119.58707907]
[1741189402337,7.0723,141.4,141.33,312.0]
[1741189403034,82.9,141.41,141.34,30.21047907]
[1741189403236,17.674,141.46,141.34,30.21047907]
[1741189403237,7.0701,141.44,141.36,30.21047907]
[1741189403544,89.9697,141.45,141.37,30.21047907]
[1741189403731,89.9697,141.45,141.37,112.51047907]
[1741189403933,7.0692,141.46,141.37,112.51047907]
[1741189404121,82.9,141.47,141.38,30.21047907]
[1741189404327,7.0687,141.47,141.38,112.51047907]
[1741189404640,0.42648471,141.46,141.38,89.3729]
[1741189404851,101.97613357,141.46,141.38,89.3729]
[1741189405346,103.83248921,141.46,141.38,82.3]
[1741189405647,103.83248921,141.46,141.38,89.3729]
[1741189406021,103.83248921,141.46,141.38,401.3729]
[1741189406545,103.83248921,141.46,141.38,394.3]
[1741189406546,0.42648471,141.44,141.38,394.3]
[1741189406726,0.42648471,141.44,141.38,312.0]
[1741189407436,26.60009478,141.45,141.38,312.0]
[1741189407625,101.54964886,141.46,141.38,312.0]
[1741189407626,90.11136157,141.46,141.38,319.0729]
[1741189407826,82.9,141.46,141.39,0.14216157]
[1741189408036,82.9,141.46,141.4,31.71687907]
[1741189408220,7.0679,141.49,141.4,114.01687907]
[1741189408423,0.42648471,141.49,141.42,6.3633]
[1741189408654,7.49428471,141.49,141.42,6.3633]
[1741189409350,25.16328471,141.49,141.42,6.3633]
[1741189409662,24.87896157,141.49,141.42,6.3633]
[1741189409858,0.28432314,141.47,141.42,6.3633]
[1741189410146,0.28432314,141.48,141.42,6.3633]
[1741189410646,0.28432314,141.49,141.42,6.3633]
[1741189410849,0.03,141.51,141.43,30.21047907]
[1741189411037,0.03,141.51,141.44,30.21047907]
[1741189411232,0.03,141.51,141.47,31.77217907]
[1741189411440,0.03,141.51,141.47,114.07217907]
[1741189411647,0.03,141.51,141.48,30.21047907]
[1741189411826,0.03,141.51,141.47,83.8617]
[1741189412026,0.03,141.51,141.47,114.07217907]
[1741189412544,0.03,141.51,141.47,83.8617]
[1741189412742,0.03,141.51,141.47,90.9302]
[1741189412940,0.03,141.51,141.47,121.14067907]
[1741189413145,0.03,141.51,141.49,6.2804]
[1741189413951,0.03,141.51,141.49,88.5804]
[1741189414341,0.03,141.51,141.5,312.0]
[1741189416356,0.03,141.51,141.49,88.5804]
[1741189417458,0.03,141.51,141.49,95.6479]
[1741189417854,0.03,141.51,141.49,88.5804]
[1741189418050,0.03,141.51,141.49,95.6479]
[1741189418367,0.03,141.51,141.49,88.5804]
[1741189418959,0.03,141.51,141.49,95.648]
[1741189419163,0.03,141.51,141.49,88.5804]
[1741189419367,0.03,141.51,141.5,312.0]
[1741189419741,0.03,141.56,141.51,0.14216157]
[1741189419949,0.03,141.56,141.52,30.21047907]
[1741189420147,0.03,141.56,141.51,112.65264064]
[1741189420345,0.03,141.56,141.51,82.44216157]
[1741189420573,0.03,141.56,141.51,82.3]
[1741189422343,0.03,141.56,141.51,89.3665]
[1741189423071,0.03,141.56,141.54,312.0]
[1741189423971,0.03,141.56,141.55,1.6067]
[1741189424657,0.03,141.56,141.55,83.9067]
[1741189425046,0.03,141.56,141.55,127.77514064]
[1741189425352,0.03,141.56,141.55,120.56837907]
[1741189425551,0.03,141.56,141.55,90.3579]
[1741189427057,0.03,141.56,141.55,402.3579]
[1741189427254,0.03,141.56,141.55,320.0579]
[1741189427454,0.03,141.56,141.51,6.644]
[1741189427658,0.03,141.56,141.51,8.1894]
[1741189428182,0.03,141.56,141.52,7.20826157]
[1741189428684,0.03,141.56,141.52,0.14216157]
[1741189428985,0.03,141.56,141.52,7.20816157]
[1741189429556,0.03,141.56,141.52,37.41864064]
[1741189429779,0.03,141.56,141.55,20.0]
[1741189429972,0.03,141.56,141.55,82.44216157]
[1741189430186,0.03,141.56,141.55,131.3022895]
[1741189430487,0.03,141.56,141.55,394.44216157]
[1741189430658,0.03,141.56,141.55,394.3]
[1741189431359,0.03,141.56,141.55,401.3646]
[1741189432059,0.03,141.56,141.55,450.3668895]
[1741189432570,0.03,141.56,141.55,394.3]
[1741189432770,0.03,141.56,141.55,401.3646]
[1741189433768,0.03,141.56,141.55,450.3668895]
[1741189434188,0.03,141.56,141.55,401.50676157]
[1741189434493,0.03,141.56,141.55,401.3646]
[1741189435372,0.03,141.56,141.55,401.50676157]
[1741189435593,0.03,141.56,141.55,431.71724064]
[1741189435897,0.03,141.56,141.52,82.3]
[1741189436371,0.03,141.56,141.52,89.366]
[1741189436768,0.03,141.56,141.52,82.3]
[1741189437294,0.03,141.56,141.52,89.366]
[1741189438169,0.03,141.56,141.52,82.3]
[1741189438493,0.03,141.56,141.52,89.3661]
[1741189438895,0.03,141.56,141.53,319.0655]
[1741189439495,0.03,141.56,141.53,7.0655]
[1741189440771,0.03,141.56,141.54,0.14216157]
[1741189440967,0.03,141.56,141.54,82.3]
[1741189441568,0.03,141.56,141.55,49.0022895]
[1741189441874,0.03,141.56,141.55,251.05264064]
[1741189442061,0.03,141.56,141.55,220.7]
[1741189442267,0.03,141.56,141.55,394.3]
[1741189443398,0.03,141.56,141.55,394.44216157]
[1741189443882,0.03,141.56,141.55,394.3]
[1741189444400,0.03,141.56,141.55,401.50676157]
[1741189445075,0.03,141.56,141.55,394.3]
[1741189447190,0.03,141.56,141.55,539.90676157]
[1741189447397,0.03,141.56,141.55,588.7668895]
[1741189447776,0.03,141.56,141.55,589.19337421]
[1741189447973,0.03,141.64,141.56,27.25219514]
[1741189448198,7.0902,141.64,141.58,0.14216157]
[1741189448580,7.0902,141.64,141.58,82.3]
[1741189449089,0.03,141.64,141.62,20.0]
[1741189449272,0.03,141.64,141.62,82.3]
[1741189451304,0.03,141.64,141.62,394.3]
[1741189451601,0.03,141.64,141.62,89.361]
[1741189452289,0.03,141.64,141.62,119.57147907]
[1741189452488,0.03,141.71,141.7,8.40454628]
[1741189452676,15.60318956,141.77,141.73,0.14216157]
[1741189452877,0.60318956,141.77,141.75,30.77912535]
[1741189453104,0.60318956,141.77,141.76,56.0563895]
[1741189453296,0.60318956,141.77,141.76,327.18287421]
[1741189453506,0.03,141.78,141.76,277.18287421]
[1741189453703,0.03,141.78,141.76,220.7]
[1741189454578,0.03,141.78,141.77,312.0]
[1741189454789,0.03,141.83,141.77,342.21047907]
[1741189454989,0.03,141.83,141.77,356.70957119]
[1741189455193,0.03,141.83,141.77,44.70957119]
[1741189455603,0.03,141.83,141.77,235.19909212]
[1741189455905,0.14216157,141.86,141.78,14.49909212]
[1741189456113,0.14216157,141.86,141.78,96.79909212]
[1741189456285,1.99304444,141.86,141.78,96.79909212]
[1741189456487,0.14216157,141.84,141.78,14.49909212]
[1741189456683,1.99304444,141.86,141.78,14.49909212]
[1741189456684,5.59957773,141.89,141.78,96.79909212]
[1741189456895,91.79930356,141.88,141.78,96.79909212]
[1741189457103,91.79930356,141.88,141.79,14.49909212]
[1741189457500,82.9,141.87,141.79,96.79909212]
[1741189457710,1.85130947,141.86,141.79,96.79909212]
[1741189458005,82.9,141.85,141.77,10.92828626]
[1741189458191,0.14216157,141.87,141.8,312.0]
[1741189458382,89.9482,141.88,141.8,394.3]
[1741189458581,89.9482,141.88,141.8,82.3]
[1741189459515,0.14216157,141.89,141.8,220.7]
[1741189459692,7.0483,141.88,141.8,222.3287]
[1741189461612,7.0483,141.88,141.85,312.0]
[1741189462495,7.0483,141.88,141.8,222.3287]
[1741189462899,83.32648471,141.87,141.8,1.6287]
[1741189463216,0.42648471,141.85,141.78,82.3]
[1741189463389,0.42648471,141.85,141.78,82.333]
[1741189463390,83.32648471,141.85,141.78,82.333]
[1741189463586,0.14216157,141.83,141.78,82.333]
[1741189465620,24.6755,141.84,141.78,394.333]
[1741189465822,0.14216157,141.83,141.78,394.333]
[1741189466122,0.14216157,141.83,141.78,82.333]
[1741189466321,0.42648471,141.83,141.78,82.333]
[1741189466631,0.42648471,141.83,141.78,0.033]
[1741189466632,0.14216157,141.8,141.78,0.033]
[1741189467012,0.14216157,141.81,141.78,0.033]
[1741189467830,7.0521,141.8,141.78,0.033]
[1741189468831,7.0506,141.83,141.78,82.333]
[1741189469028,24.6773,141.83,141.78,82.333]
[1741189469197,0.14216157,141.82,141.78,82.333]
[1741189469396,0.14216157,141.82,141.78,0.033]
[1741189469397,0.42648471,141.82,141.78,0.033]
[1741189469626,2.27809012,141.82,141.78,0.033]
[1741189470333,85.17809012,141.82,141.78,0.033]
[1741189470999,83.32648471,141.82,141.78,0.033]
[1741189471297,82.9,141.82,141.78,0.033]
[1741189472119,0.42648471,141.84,141.78,312.033]
[1741189472825,82.9,141.85,141.78,0.033]
[1741189473504,2.6581,141.88,141.78,0.033]
[1741189473505,0.03,141.88,141.79,18.64964886]
[1741189473705,0.03,141.88,141.81,18.64964886]
[1741189474194,0.03,141.88,141.81,131.16012793]
[1741189474721,0.03,141.88,141.81,100.94964886]
[1741189475098,0.03,141.88,141.81,131.16012793]
[1741189475330,0.03,141.88,141.81,100.94964886]
[1741189475848,0.03,141.88,141.87,312.0]
[1741189478319,0.03,141.88,141.84,18.64964886]
[1741189478517,0.03,141.88,141.84,239.34964886]
[1741189478843,0.03,141.88,141.86,18.64964886]
[1741189479402,0.03,141.88,141.86,100.94964886]
[1741189480444,0.03,141.88,141.86,82.3]
[1741189481316,0.03,141.88,141.87,312.0]
[1741189482610,0.03,141.88,141.87,82.3]
[1741189485042,0.03,141.88,141.87,239.34964886]
[1741189485343,0.03,141.91,141.9,20.22184886]
[1741189485544,0.03,141.91,141.9,132.73232793]
[1741189485745,0.03,141.91,141.9,444.73232793]
[1741189486344,0.03,141.91,141.9,313.5722]
[1741189486641,0.03,141.91,141.9,414.52184886]
[1741189486814,0.03,141.91,141.9,444.73232793]
[1741189487337,0.03,141.91,141.9,414.52184886]
[1741189487949,0.03,141.91,141.9,444.73232793]
[1741189488250,0.03,141.91,141.9,414.52184886]
[1741189488444,0.03,141.91,141.9,395.8722]
[1741189488951,0.03,141.91,141.9,394.3]
[1741189489149,0.03,141.91,141.9,312.0]
[1741189490041,0.03,141.91,141.88,6.5058]
[1741189490725,0.03,141.91,141.87,83.883]
[1741189490926,0.03,141.91,141.87,1.583]
[1741189491336,0.03,141.91,141.87,83.883]
[1741189492952,0.03,141.91,141.87,395.883]
[1741189493387,0.03,141.91,141.87,1.583]
[1741189497666,0.03,141.91,141.85,88.6933]
[1741189499273,0.03,141.91,141.85,82.3]
[1741189500281,0.42648471,141.89,141.83,1.5052]
[1741189500437,0.03,141.91,141.83,83.8052]
[1741189500643,0.03,141.91,141.88,18.82534276]
[1741189500953,0.03,141.91,141.9,45.55749162]
[1741189501450,0.03,141.91,141.9,1.6012]
[1741189503543,0.03,141.91,141.9,20.25084886]
[1741189503745,0.03,141.91,141.9,39.07619162]
[1741189504170,0.03,141.91,141.9,351.07619162]
[1741189504375,0.03,141.91,141.9,332.25084886]
[1741189504749,0.03,141.91,141.9,552.95084886]
[1741189505069,0.03,141.91,141.9,534.3012]
[1741189505570,0.03,141.91,141.87,1.507]
[1741189506264,0.03,141.91,141.81,82.3]
[1741189506576,0.03,141.91,141.83,18.64964886]
[1741189506951,0.03,141.91,141.83,37.47499162]
[1741189507148,0.03,141.91,141.83,18.64964886]
[1741189508393,0.03,141.91,141.82,20.44778294]
[1741189508394,0.45648471,141.91,141.81,239.52534276]
[1741189508679,0.03,141.91,141.88,0.14216157]
[1741189508839,0.03,141.91,141.89,18.82534276]
[1741189509476,0.03,141.91,141.9,37.47499162]
[1741189509680,0.1,142.02,141.93,38.64964886]
[1741189509888,0.1,142.02,141.97,57.61715319]
[1741189510095,0.1,142.02,141.97,278.7436379]
[1741189510260,0.1,142.02,141.99,0.14216157]
[1741189510452,0.1,142.02,142.01,63.91365319]
[1741189510654,0.1,142.02,142.01,65.3917417]
[1741189510871,10.75908991,142.11,142.06,18.79181043]
[1741189511086,10.75908991,142.11,142.1,18.82534276]
[1741189511256,10.75908991,142.11,142.07,2.99298578]
[1741189511454,10.75908991,142.11,142.07,1.5153]
[1741189511682,10.75908991,142.11,142.03,7.9812]
[1741189511884,18.64964886,142.09,142.01,220.7]
[1741189512077,0.42648471,142.09,142.03,312.0]
[1741189512259,19.07613357,142.09,141.99,164.96364276]
[1741189512678,19.07613357,142.09,141.99,176.19200504]
[1741189512978,1.84810697,142.12,142.0,48.7033539]
[1741189513181,1.84810697,142.12,142.02,18.64964886]
[1741189513407,82.9,142.14,142.05,30.05370504]
[1741189513560,0.28432314,142.15,142.05,30.05370504]
[1741189513755,1.8472996,142.16,142.05,30.05370504]
[1741189514060,2.788,142.17,142.08,30.05370504]
[1741189514262,12.60627211,142.19,142.09,30.05370504]
[1741189514564,18.933972,142.18,142.09,30.05370504]
[1741189514778,18.933972,142.18,142.08,30.05370504]
[1741189514968,18.64964886,142.18,142.07,28.0043]
[1741189515170,18.64964886,142.18,142.07,58.05800504]
[1741189515484,0.14216157,142.17,142.1,312.0]
[1741189515870,0.28432314,142.17,142.1,312.0]
[1741189517057,12.60627211,142.19,142.08,30.05370504]
[1741189517260,10.75908991,142.19,142.11,50.05370504]
[1741189517486,7.46203535,142.23,142.12,30.05370504]
[1741189517691,18.64964886,142.22,142.12,30.05370504]
[1741189518465,18.64964886,142.22,142.13,30.05370504]
[1741189518666,2.788,142.25,142.15,30.05370504]
[1741189518986,8.39351111,142.25,142.15,36.49050504]
[1741189519187,2.0048819,142.27,142.19,30.05370504]
[1741189519392,2.0048819,142.27,142.2,30.05370504]
[1741189519694,2.0048819,142.27,142.19,30.05370504]
[1741189519867,2.0048819,142.27,142.18,20.0]
[1741189520187,20.49538776,142.26,142.2,312.0]
[1741189520485,0.28432314,142.25,142.2,312.0]
[1741189520684,18.933972,142.23,142.15,6.4368]
[1741189521076,7.0303,142.24,142.16,30.05370504]
[1741189521260,18.79181043,142.23,142.15,43.52520504]
[1741189521463,18.79181043,142.23,142.15,6.4368]
[1741189521987,0.14216157,142.22,142.15,6.4368]
[1741189522190,18.79181043,142.23,142.15,43.52520504]
[1741189522789,7.0313,142.22,142.15,6.4368]
[1741189523287,7.0298,142.25,142.15,43.52510504]
[1741189523477,7.0298,142.25,142.16,1.47659805]
[1741189523666,7.0298,142.25,142.18,312.0]
[1741189523868,7.0298,142.25,142.19,30.05370504]
[1741189524088,7.0298,142.25,142.18,342.05370504]
[1741189524292,7.0298,142.25,142.19,30.05370504]
[1741189524494,7.0298,142.25,142.18,50.05370504]
[1741189524680,7.0293,142.26,142.18,50.05370504]
[1741189524867,0.28432314,142.24,142.16,37.08790504]
[1741189525065,0.28432314,142.22,142.12,3.04229847]
[1741189525383,0.28432314,142.19,142.12,1.5656]
[1741189525775,2.13093247,142.19,142.12,1.5656]
[1741189525979,0.28432314,142.17,142.08,83.9502]
[1741189526174,18.933972,142.17,142.08,83.9502]
[1741189526672,0.28432314,142.13,142.08,1.6502]
[1741189526898,18.933972,142.13,142.08,1.6502]
[1741189527071,7.0353,142.14,142.08,1.6502]
[1741189527389,2.0048819,142.27,142.14,7.854]
[1741189527591,84.9,142.47,142.28,0.42648471]
[1741189527767,2.0,142.44,142.31,30.05370504]
[1741189527970,5.52898652,142.41,142.31,30.05370504]
[1741189528169,1.84416473,142.45,142.31,30.05370504]
[1741189528779,0.03,142.38,142.31,30.05370504]
[1741189529169,0.03,142.38,142.3,30.05370504]
[1741189529689,0.03,142.38,142.29,7.62]
[1741189529889,0.03,142.38,142.31,30.05370504]
[1741189530599,0.03,142.38,142.29,7.62]
[1741189530600,0.28432314,142.36,142.29,7.62]
[1741189530780,20.52384029,142.38,142.29,56.26466776]
[1741189530781,0.03,142.38,142.29,56.26466776]
[1741189530966,0.14216157,142.36,142.21,15.6874]
[1741189531172,18.64964886,142.33,142.23,3.51313205]
[1741189531392,103.85134438,142.32,142.23,3.51313205]
[1741189531589,105.85134438,142.32,142.23,3.51313205]
[1741189531874,105.85134438,142.32,142.18,48.64466776]
[1741189531875,103.85134438,142.32,142.21,48.64466776]
[1741189532595,0.42648471,142.29,142.16,14.8154]
[1741189532790,0.42648471,142.29,142.16,56.42616776]
[1741189532791,0.42648471,142.27,142.16,56.42616776]
[1741189532996,0.42648471,142.24,142.13,56.26466776]
[1741189533186,18.64964886,142.23,142.13,56.26466776]
[1741189533496,19.07613357,142.24,142.13,56.26466776]
[1741189533695,0.42648471,142.22,142.12,55.68086776]
[1741189533894,19.07613357,142.22,142.12,48.64466776]
[1741189534397,1.84640893,142.21,142.11,505.07436776]
[1741189534599,0.42648471,142.22,142.11,505.07436776]
[1741189534782,2.27300571,142.22,142.11,505.07436776]
[1741189534977,0.42648471,142.2,142.11,512.11106776]
[1741189535178,18.64964886,142.21,142.12,48.64466776]
[1741189535583,0.42648471,142.2,142.11,48.64466776]
[1741189535918,0.42648471,142.19,142.1,139.57516776]
[1741189536102,0.42648471,142.17,142.1,1.5935]
[1741189536276,18.79181043,142.16,142.07,269.34466776]
[1741189536477,0.42648471,142.15,142.06,187.04466776]
[1741189536798,0.42648471,142.13,142.05,48.64466776]
[1741189536998,18.64964886,142.11,142.02,7.0742]
[1741189537204,0.14216157,142.18,142.09,48.64466776]
[1741189537500,0.14216157,142.18,142.11,48.64466776]
[1741189537700,0.14216157,142.2,142.07,1.5224]
[1741189537874,7.0298,142.25,142.14,48.64466776]
[1741189538079,7.0298,142.25,142.15,48.64466776]
[1741189538373,20.92235671,142.24,142.13,48.64466776]
[1741189538577,20.495872,142.24,142.11,313.47724816]
[1741189538782,7.0308,142.23,142.13,48.64466776]
[1741189538997,18.64964886,142.22,142.14,48.64466776]
[1741189539175,2.788,142.26,142.16,48.64466776]
[1741189539371,4.63393704,142.26,142.14,138.4]
[1741189539681,19.07613357,142.25,142.1,145.4372]
[1741189539881,0.42648471,142.23,142.1,145.4372]
[1741189540098,0.42648471,142.21,142.11,48.64466776]
[1741189540394,19.07613357,142.19,142.1,48.64466776]
[1741189540573,18.64964886,142.19,142.1,48.64466776]
[1741189540774,27.95646324,142.18,142.08,48.64466776]
[1741189541379,27.95646324,142.18,142.07,50.16706776]
[1741189541601,27.95646324,142.18,142.07,1.5224]
[1741189541806,27.95646324,142.18,142.08,48.64466776]
[1741189541974,27.95646324,142.18,142.07,50.16706776]
[1741189542173,0.42648471,142.16,142.07,444.46706776]
[1741189542401,0.42648471,142.14,142.07,1.5224]
[1741189542698,18.64964886,142.13,142.07,1.5224]
[1741189543001,19.07613357,142.11,142.03,88.478]
[1741189543304,18.64964886,142.11,142.03,82.3]
[1741189543485,18.64964886,142.11,142.03,130.94466776]
[1741189543806,18.64964886,142.11,142.03,82.3]
[1741189544302,0.42648471,142.1,142.03,82.3]
[1741189544478,0.42648471,142.08,142.02,0.033]
[1741189544678,18.64964886,142.07,142.02,0.033]
[1741189545013,25.68934886,142.05,142.02,0.033]
[1741189546286,82.9,142.07,142.02,0.033]
[1741189546480,89.9389,142.07,142.02,0.033]
[1741189546688,18.64964886,142.06,142.02,0.033]
[1741189547214,25.68894886,142.06,142.02,0.033]
[1741189547376,27.53719927,142.06,142.02,0.033]
[1741189547579,89.9387,142.07,142.02,0.033]
[1741189547987,84.74848906,142.09,142.02,0.033]
[1741189548209,0.42648471,142.07,142.02,0.033]
[1741189548377,19.07613357,142.07,142.02,0.033]
[1741189548577,20.9245133,142.07,142.02,0.033]
[1741189549176,7.0392,142.06,142.02,0.033]
[1741189550319,18.79181043,142.05,142.02,0.033]
[1741189551182,7.0402,142.04,142.02,0.033]
[1741189551585,18.79181043,142.03,141.95,0.033]
[1741189551783,101.54964886,142.03,141.95,48.67766776]
[1741189552303,18.64964886,142.01,141.95,0.033]
[1741189552504,18.64964886,141.99,141.95,0.033]
[1741189553114,101.54964886,141.99,141.95,0.033]
[1741189553292,24.6513,141.98,141.95,0.033]
[1741189554179,18.64964886,141.97,141.95,0.033]
[1741189555087,7.0432,141.98,141.95,0.033]
[1741189555893,18.64964886,141.97,141.95,0.033]
[1741189556517,7.0432,141.98,141.95,0.033]
[1741189556894,18.64964886,141.97,141.95,0.033]
[1741189557098,101.54964886,141.97,141.95,0.033]
[1741189557297,25.69384886,141.96,141.95,0.033]
[1741189557615,26.12033357,141.96,141.95,0.033]
[1741189557814,19.07613357,141.95,141.87,0.033]
[1741189557991,0.14216157,141.93,141.87,0.033]
[1741189558393,0.42648471,141.91,141.87,0.033]
[1741189558610,1.85059606,141.9,141.87,0.033]
[1741189558814,18.933972,141.89,141.87,0.033]
[1741189559014,0.14216157,141.88,141.87,0.033]
[1741189559519,9.04122589,141.88,141.87,0.033]
[1741189559694,27.97519789,141.88,141.87,0.033]
[1741189561102,7.0478,141.89,141.87,0.033]
[1741189561299,1.85081046,141.92,141.87,0.033]
[1741189561300,7.0467,141.91,141.87,0.033]